{"text_format":"1","workbook":"xlsx","n_sheets":3,"sheets":["Simple","Advanced","Error"],"not_rendered":{"charts":0,"images":0,"macros":1,"external_links":0,"defined_names":0,"comments":0,"pivot_tables":0},"unopened":[],"bounds":{"document_bytes":16777216,"sheet_cells":100000,"rows_first":2000,"rows_last":500,"rows_between":2000,"halvings":0,"cell_chars":16384,"cell_head_chars":4096},"cells_cut":0,"cells_raw":0,"read":"whole","date_system":"1900"}

{"sheet":"Simple","index":0,"n_rows":15,"n_cols":10,"rows_kept":15,"cut":false,"hidden":false,"merged":[]}
["Random integers 1..10"]
[{"$f":"sbRandInt(1,10)","v":4},10,7,6,1,9,3,2,8,5]
[{"$f":"sbGetCell(A2,\"ShowFormula\")","v":"=sbRandInt(1;10)"}]
[]
["Random integers 1..5 - each appearing twice"]
[{"$f":"sbRandInt(1,5,2)","v":1},1,5,3,4,5,4,2,2,3]
[{"$f":"sbGetCell(A6,\"ShowFormula\")","v":"=sbRandInt(1;5;2)"}]
[]
["5 non-repeating random integers between 1 and 10"]
[{"$f":"sbRandInt(1,10)","v":1}]
[5]
[7]
[9]
[2]
[{"$f":"sbGetCell(A10,\"ShowFormula\")","v":"=sbRandInt(1;10)"}]

{"sheet":"Advanced","index":1,"n_rows":51,"n_cols":25,"rows_kept":51,"cut":false,"hidden":false,"merged":[]}
["Min",5,null,null,null,null,"Min",5,null,null,null,null,"Min",5,null,null,null,null,"Min",5]
["Max",40,null,null,null,null,"Max",22,null,null,null,null,"Max",16,null,null,null,null,"Max",13]
["Repetitions",1,null,null,null,null,"Repetitions",2,null,null,null,null,"Repetitions",3,null,null,null,null,"Repetitions",4,null,null,null,null,"9 sbRandInts"]
[null,{"$f":"sbRandInt(B1,B2,B3)","v":30},6,38,15,null,null,{"$f":"sbRandInt(H1,H2,H3)","v":13},15,9,17,null,null,{"$f":"sbRandInt(N1,N2,N3)","v":6},10,7,13,null,null,{"$f":"sbRandInt(T1,T2,T3)","v":10},9,6,12,null,{"$f":"sbRandInt(18,26,9)","v":26}]
[null,5,13,35,33,null,null,19,9,13,21,null,null,15,7,6,10,null,null,9,9,8,5,null,21]
[null,27,32,28,10,null,null,8,18,10,14,null,null,11,9,5,9,null,null,12,7,12,11,null,20]
[null,31,7,37,17,null,null,19,5,15,12,null,null,15,7,16,12,null,null,13,5,11,5,null,25]
[null,23,9,39,40,null,null,7,14,11,22,null,null,11,14,8,15,null,null,9,6,7,13,null,26]
[null,14,12,11,16,null,null,10,8,5,16,null,null,13,12,16,5,null,null,10,8,12,6,null,26]
[null,36,34,29,8,null,null,20,7,22,12,null,null,8,14,8,13,null,null,7,11,8,10,null,19]
[null,21,22,20,24,null,null,11,21,20,6,null,null,5,6,12,10,null,null,8,5,10,6,null,23]
[null,25,19,26,18,null,null,18,16,17,6,null,null,9,14,11,16,null,null,11,7,13,13,null,22]
["Formula in Row 4:12",{"$f":"sbGetCell(B12,\"ShowFormula\")","v":"=sbRandInt(B1;B2;B3)"},null,null,null,null,"Formula in Row 4:12",{"$f":"sbGetCell(H12,\"ShowFormula\")","v":"=sbRandInt(H1;H2;H3)"},null,null,null,null,"Formula in Row 4:12",{"$f":"sbGetCell(N12,\"ShowFormula\")","v":"=sbRandInt(N1;N2;N3)"},null,null,null,null,"Formula in Row 4:12",{"$f":"sbGetCell(T12,\"ShowFormula\")","v":"=sbRandInt(T1;T2;T3)"},null,null,null,null,{"$f":"sbGetCell(Y12,\"ShowFormula\")","v":"=sbRandInt(18;26;9)"}]
["Check:","No","Count",null,null,null,"Check:","No","Count",null,null,null,"Check:","No","Count",null,null,null,"Check:","No","Count"]
[null,null,{"$f":"SUM(C16:C51)","v":36},null,null,null,null,null,{"$f":"SUM(I16:I51)","v":36},null,null,null,null,null,{"$f":"SUM(O16:O51)","v":36},null,null,null,null,null,{"$f":"SUM(U16:U51)","v":36}]
[null,5,{"$f":"COUNTIF($B$4:$E$12,B16)","v":1},null,null,null,null,5,{"$f":"COUNTIF($H$4:$K$12,H16)","v":2},null,null,null,null,5,{"$f":"COUNTIF($N$4:$Q$12,N16)","v":3},null,null,null,null,5,{"$f":"COUNTIF($T$4:$W$12,T16)","v":4}]
[null,6,1,null,null,null,null,6,2,null,null,null,null,6,3,null,null,null,null,6,{"$f":"COUNTIF($T$4:$W$12,T17)","v":4}]
[null,7,1,null,null,null,null,7,2,null,null,null,null,7,3,null,null,null,null,7,4]
[null,8,1,null,null,null,null,8,2,null,null,null,null,8,3,null,null,null,null,8,4]
[null,9,1,null,null,null,null,9,2,null,null,null,null,9,3,null,null,null,null,9,4]
[null,10,1,null,null,null,null,10,2,null,null,null,null,10,3,null,null,null,null,10,4]
[null,11,1,null,null,null,null,11,2,null,null,null,null,11,3,null,null,null,null,11,4]
[null,12,1,null,null,null,null,12,2,null,null,null,null,12,3,null,null,null,null,12,4]
[null,13,1,null,null,null,null,13,2,null,null,null,null,13,{"$f":"COUNTIF($N$4:$Q$12,N24)","v":3},null,null,null,null,13,4]
[null,14,1,null,null,null,null,14,2,null,null,null,null,14,3]
[null,15,1,null,null,null,null,15,2,null,null,null,null,15,3]
[null,16,1,null,null,null,null,16,2,null,null,null,null,16,3]
[null,17,1,null,null,null,null,17,2]
[null,18,1,null,null,null,null,18,2]
[null,19,1,null,null,null,null,19,{"$f":"COUNTIF($H$4:$K$12,H30)","v":2}]
[null,20,1,null,null,null,null,20,2]
[null,21,1,null,null,null,null,21,2]
[null,22,1,null,null,null,null,22,2]
[null,23,1]
[null,24,1]
[null,25,1]
[null,26,1]
[null,27,1]
[null,28,1]
[null,29,1]
[null,30,1]
[null,31,1]
[null,32,1]
[null,33,1]
[null,34,1]
[null,35,1]
[null,36,1]
[null,37,1]
[null,38,1]
[null,39,1]
[null,40,1]

{"sheet":"Error","index":2,"n_rows":6,"n_cols":3,"rows_kept":6,"cut":false,"hidden":false,"merged":[]}
["ErrRef","ErrNum","ErrValue"]
[{"$f":"sbRandInt(1,2,3)","v":1},{"$f":"sbRandInt(1,5,-1,1)","v":{"$error":"#NUM!"}},{"$f":"sbRandInt(1,5,,-1)","v":{"$error":"#VALUE!"}}]
[1]
[]
[{"$f":"sbRandInt(1,1)","v":{"$error":"#REF!"}}]
[{"$error":"#REF!"}]